bitfinex/quotes_SOLUSD_20250712
["timestamp","ask_amount","ask_price","bid_price","bid_amount"]
[1752320848589,3.87541474,161.87,161.85,32.28]
[1752320848857,4.53541474,161.87,161.85,32.28]
[1752320851060,0.66,161.86,161.83,26.0]
[1752320851235,0.66,161.86,161.81,26.06]
[1752320851236,3.84541474,161.84,161.81,26.06]
[1752320851561,4.50541474,161.84,161.82,32.28]
[1752320851941,6.1311,161.87,161.82,32.28]
[1752320852147,4.50541474,161.85,161.82,32.28]
[1752320853839,0.66,161.85,161.82,32.28]
[1752320854164,4.50541474,161.85,161.82,32.28]
[1752320857183,0.66,161.85,161.82,32.28]
[1752320857357,4.50541474,161.85,161.82,32.28]
[1752320858476,3.84541474,161.85,161.82,32.28]
[1752320858647,0.66,161.84,161.82,32.28]
[1752320860073,4.50541474,161.85,161.82,32.28]
[1752320860569,3.84541474,161.85,161.82,32.54]
[1752320861073,2.45835132,161.85,161.82,32.54]
[1752320861261,3.11835132,161.85,161.82,32.28]
[1752320862568,2.45835132,161.85,161.82,32.54]
[1752320862968,3.11835132,161.85,161.82,32.54]
[1752320864172,3.11835132,161.85,161.82,32.28]
[1752320864351,3.14835132,161.85,161.82,32.28]
[1752320866463,2.45835132,161.84,161.82,32.28]
[1752320867266,2.45835132,161.84,161.82,32.54]
[1752320868267,2.45835132,161.84,161.82,32.28]
[1752320869166,0.69,161.85,161.82,32.28]
[1752320869381,2.45835132,161.84,161.82,32.28]
[1752320872172,0.66,161.83,161.82,32.28]
[1752320872598,3.11835132,161.83,161.81,0.06]
[1752320872813,0.66,161.83,161.82,32.24]
[1752320873992,3.11835132,161.83,161.82,32.24]
[1752320875191,2.45835132,161.83,161.82,32.24]
[1752320875693,2.45835132,161.83,161.81,0.06]
[1752320875886,2.45835132,161.82,161.81,0.06]
[1752320876096,2.45835132,161.82,161.81,32.3]
[1752320877501,3.11835132,161.82,161.81,32.3]
[1752320879499,0.66,161.82,161.81,32.3]
[1752320879687,3.11835132,161.82,161.81,32.3]
[1752320880284,2.45835132,161.82,161.81,32.3]
[1752320881207,0.03,161.85,161.81,32.3]
[1752320881381,2.45835132,161.82,161.81,32.3]
[1752320884110,2.45835132,161.82,161.81,0.06]
[1752320884309,3.11835132,161.82,161.81,32.28]
[1752320885009,0.66,161.82,161.81,32.28]
[1752320885313,3.11835132,161.82,161.81,32.28]
[1752320886013,2.45835132,161.82,161.81,32.28]
[1752320887719,0.66,161.84,161.81,32.28]
[1752320888028,2.45835132,161.82,161.81,32.28]
[1752320893808,0.69,161.85,161.81,32.28]
[1752320894008,2.45835132,161.82,161.81,32.28]
[1752320896294,0.68,161.84,161.81,32.28]
[1752320896511,2.45835132,161.82,161.81,32.28]
[1752320897387,0.03,161.85,161.81,49.32468397]
[1752320897594,2.45835132,161.84,161.82,0.26]
[1752320898717,2.45835132,161.84,161.82,17.04468397]
[1752320902120,0.03,161.85,161.83,17.04468397]
[1752320902323,2.48835132,161.85,161.84,32.18]
[1752320903308,0.03,161.85,161.84,32.44]
[1752320903502,2.48835132,161.85,161.84,32.18]
[1752320903702,3.16835132,161.85,161.84,32.18]
[1752320904016,3.16835132,161.85,161.81,0.06]
[1752320904223,2.45835132,161.82,161.81,0.06]
[1752320904532,2.45835132,161.82,161.81,32.24]
[1752320904824,3.13835132,161.82,161.81,32.24]
[1752320905530,3.13835132,161.82,161.81,0.06]
[1752320905716,3.13835132,161.82,161.81,32.24]
[1752320906923,4.52411128,161.82,161.81,32.24]
[1752320907427,0.68,161.82,161.81,32.24]
[1752320907613,4.52411128,161.82,161.81,32.24]
[1752320909550,3.84411128,161.82,161.81,32.24]
[1752320909736,3.84411128,161.83,161.81,32.24]
[1752320910111,3.84411128,161.83,161.81,32.5]
[1752320910311,3.84411128,161.83,161.81,32.24]
[1752320910724,3.84411128,161.83,161.81,32.5]
[1752320910926,3.84411128,161.83,161.81,32.24]
[1752320912920,0.68,161.84,161.81,32.24]
[1752320913114,3.84411128,161.82,161.81,32.24]
[1752320913812,0.68,161.84,161.81,32.24]
[1752320914012,3.84411128,161.83,161.81,32.24]
[1752320915843,4.52411128,161.82,161.81,0.06]
[1752320916025,4.52411128,161.82,161.81,32.22]
[1752320922224,4.52411128,161.82,161.81,0.06]
[1752320922529,4.52411128,161.82,161.81,32.22]
[1752320923737,10.92641128,161.82,161.81,0.06]
[1752320924040,10.92641128,161.82,161.81,32.2]
[1752320930152,10.95641128,161.82,161.81,32.2]
[1752320937061,9.5725494,161.82,161.81,32.2]
[1752320941258,0.03,161.82,161.81,32.46]
[1752320941460,0.03,161.82,161.81,49.24468397]
[1752320941762,0.03,161.85,161.84,42.78468397]
[1752320941946,0.03,161.85,161.84,74.90468397]
[1752320942264,2.4902494,161.85,161.84,32.1]
[1752320942967,3.87121916,161.85,161.84,32.1]
[1752320945144,0.03,161.85,161.84,49.11468397]
[1752320947458,0.03,161.85,161.84,76.72228397]
[1752320952041,0.03,161.85,161.84,74.88468397]
[1752320952246,0.03,161.85,161.84,75.11468397]
[1752320952966,0.03,161.85,161.84,75.09468397]
[1752320953263,0.03,161.85,161.84,42.78468397]
[1752320953461,0.03,161.85,161.84,74.86468397]
[1752320954468,0.03,161.85,161.84,75.09468397]
[1752320961464,0.03,161.85,161.84,74.86468397]
[1752320963153,0.73,161.85,161.84,74.86468397]
[1752320963676,0.03,161.85,161.84,74.86468397]
[1752320965248,0.03,161.85,161.84,42.78468397]
[1752320965452,0.03,161.85,161.84,74.82468397]
[1752320970263,0.03,161.85,161.84,42.78468397]
[1752320970463,0.03,161.85,161.84,74.82468397]
[1752320973276,0.03,161.85,161.84,42.78468397]
[1752320973464,0.03,161.85,161.84,74.80468397]
[1752320977866,0.03,161.85,161.84,42.78468397]
[1752320978072,0.03,161.85,161.84,74.80468397]
[1752320979890,0.03,161.85,161.84,75.03468397]
[1752320980065,0.03,161.85,161.84,74.78468397]
[1752320980390,3.18745112,161.85,161.84,74.78468397]
[1752320980965,0.73,161.85,161.84,74.78468397]
[1752320981176,3.18745112,161.85,161.84,74.78468397]
[1752320981992,0.03,161.85,161.84,74.78468397]
[1752320982189,2.48745112,161.85,161.84,74.78468397]
[1752320982375,0.03,161.85,161.84,74.78468397]
[1752320985173,0.03,161.85,161.84,75.01468397]
[1752320986597,0.03,161.85,161.84,74.78468397]
[1752320988795,3.01975114,161.87,161.85,16.78468397]
[1752320988999,3.01975114,161.87,161.86,32.0]
[1752320990299,2.34975114,161.87,161.86,32.0]
[1752320990474,0.7,161.9,161.86,32.0]
[1752320990680,2.45745112,161.88,161.86,32.0]
[1752320990889,3.12745112,161.88,161.86,32.0]
[1752320992681,0.67,161.87,161.86,32.0]
[1752320993185,3.12745112,161.87,161.86,32.0]
[1752320995996,3.12745112,161.87,161.86,31.96]
[1752321000711,2.45745112,161.87,161.86,31.96]
[1752321000909,0.67,161.89,161.86,31.96]
[1752321000910,2.45745112,161.88,161.86,31.96]
[1752321001385,3.12745112,161.88,161.86,31.96]
[1752321002316,0.03,161.9,161.87,19.47213509]
[1752321002496,0.03,161.9,161.88,31.96]
[1752321005513,0.03,161.9,161.88,32.19]
[1752321006606,0.03,161.9,161.89,16.78468397]
[1752321006810,0.03,161.9,161.89,20.85252831]
[1752321008503,0.03,161.9,161.89,16.78468397]
[1752321008820,0.03,161.9,161.89,48.72468397]
[1752321009320,0.03,161.9,161.89,16.78468397]
[1752321009492,0.03,161.9,161.89,48.70468397]
[1752321010200,0.03,161.9,161.89,52.77252831]
[1752321010396,0.03,161.9,161.89,16.78468397]
[1752321010596,0.7,161.9,161.89,48.70468397]
[1752321011113,4.53784434,161.9,161.86,26.0]
[1752321011417,3.83784434,161.88,161.87,48.70468397]
[1752321011594,0.67,161.88,161.87,48.70468397]
[1752321011914,4.50784434,161.89,161.87,48.70468397]
[1752321012093,0.67,161.89,161.87,48.70468397]
[1752321013310,4.50784434,161.88,161.86,26.0]
[1752321013516,6.3645,161.9,161.81,0.29]
[1752321013517,4.50784434,161.87,161.81,16.84468397]
[1752321013691,3.83784434,161.84,161.83,16.78468397]
[1752321013897,3.83784434,161.85,161.83,16.78468397]
[1752321014117,0.66,161.85,161.84,31.92]
[1752321017601,4.49784434,161.85,161.84,31.92]
[1752321021415,6.3645,161.9,161.84,31.92]
[1752321021416,4.49784434,161.86,161.84,31.92]
[1752321021636,3.83784434,161.86,161.84,31.92]
[1752321022403,3.83784434,161.87,161.84,32.15]
[1752321022609,3.83784434,161.87,161.85,16.78468397]
[1752321022803,3.83784434,161.87,161.84,32.15]
[1752321022804,3.83784434,161.87,161.86,31.9]
[1752321024027,10.86234434,161.9,161.86,31.9]
[1752321024192,4.49784434,161.89,161.87,16.78468397]
[1752321024392,4.49784434,161.89,161.88,31.9]
[1752321026025,3.86784434,161.9,161.88,31.9]
[1752321026325,4.52784434,161.9,161.88,31.9]
[1752321028802,3.14662411,161.9,161.88,31.9]
[1752321031813,0.03,161.9,161.89,16.78468397]
[1752321032314,0.69,161.9,161.89,16.78468397]
[1752321033125,0.03,161.9,161.89,16.78468397]
[1752321035828,0.03,161.9,161.89,48.64468397]
[1752321037012,0.69,161.9,161.89,48.64468397]
[1752321037533,3.14662411,161.9,161.89,31.86]
[1752321040245,2.45662411,161.87,161.78,2.45662411]
[1752321040413,8.6854,161.89,161.85,16.78468397]
[1752321040735,3.11662411,161.88,161.85,16.78468397]
[1752321040912,0.66,161.88,161.86,63.72]
[1752321041416,0.66,161.87,161.86,80.50468397]
[1752321042217,10.48202411,161.89,161.86,80.50468397]
[1752321042218,11.14202411,161.89,161.86,80.50468397]
[1752321042511,0.66,161.88,161.87,16.78468397]
[1752321042842,0.69,161.9,161.87,80.50468397]
[1752321043018,0.03,161.9,161.87,80.50468397]
[1752321043219,0.66,161.89,161.87,80.50468397]
[1752321048135,0.65,161.88,161.87,80.50468397]
[1752321049542,3.10662411,161.88,161.87,31.84]
[1752321061831,3.10662411,161.88,161.84,16.78468397]
[1752321062042,2.45662411,161.85,161.83,16.84468397]
[1752321062240,3.10662411,161.84,161.83,16.84468397]
[1752321062550,3.10662411,161.84,161.83,48.66468397]
[1752321062751,3.10662411,161.84,161.83,31.88]
[1752321063269,0.65,161.87,161.83,0.29]
[1752321063477,2.45662411,161.87,161.83,0.29]
[1752321063773,3.10662411,161.87,161.84,0.29]
[1752321064071,3.10662411,161.87,161.83,0.29]
[1752321064495,3.10662411,161.87,161.84,31.82]
[1752321064872,6.5194,161.88,161.84,31.82]
[1752321064873,3.10662411,161.86,161.84,31.82]
[1752321065373,3.10662411,161.86,161.85,16.78468397]
[1752321065874,0.65,161.85,161.84,31.82]
[1752321066074,3.10662411,161.85,161.84,31.82]
[1752321067468,3.10662411,161.85,161.81,26.0]
[1752321067774,2.45662411,161.83,161.82,31.82]
[1752321070468,3.10662411,161.83,161.82,31.82]
[1752321071756,6.5778,161.88,161.83,16.78468397]
[1752321072081,6.5778,161.88,161.84,31.82]
[1752321072082,0.65,161.87,161.84,31.82]
[1752321072378,0.65,161.87,161.85,31.8]
[1752321072680,0.65,161.87,161.8,16.78468397]
[1752321072884,0.65,161.87,161.81,31.8]
[1752321073060,2.45662411,161.83,161.81,31.8]
[1752321073456,3.10662411,161.83,161.81,31.8]
[1752321074887,3.15662411,161.82,161.81,48.58468397]
[1752321075891,0.7,161.82,161.81,31.8]
[1752321076083,2.45662411,161.82,161.81,31.8]
[1752321077364,0.7,161.83,161.81,31.8]
[1752321077671,2.45662411,161.82,161.81,31.8]
[1752321077870,0.7,161.85,161.81,32.09]
[1752321078081,2.45662411,161.84,161.81,32.09]
[1752321078692,0.03,161.89,161.82,17.07468397]
[1752321078893,2.45662411,161.87,161.83,31.8]
[1752321079066,3.15662411,161.87,161.83,31.8]
[1752321079274,2.45662411,161.86,161.83,31.8]
[1752321079473,2.45662411,161.86,161.83,32.09]
[1752321079674,3.15662411,161.87,161.83,32.09]
[1752321081986,2.45662411,161.86,161.83,31.8]
[1752321082375,3.15662411,161.86,161.83,31.8]
[1752321082572,0.7,161.86,161.83,31.8]
[1752321082794,2.45662411,161.87,161.83,32.09]
[1752321083271,3.15662411,161.87,161.83,32.09]
[1752321083983,2.45662411,161.87,161.84,0.29]
[1752321084299,2.45662411,161.87,161.85,31.8]
[1752321084669,2.45662411,161.87,161.85,32.09]
[1752321084979,2.45662411,161.88,161.85,32.09]
[1752321085572,2.45662411,161.88,161.85,31.8]
[1752321085782,3.15662411,161.88,161.85,31.8]
[1752321087494,3.15662411,161.87,161.85,31.8]
[1752321087702,2.45662411,161.86,161.85,48.58468397]
[1752321087900,3.15662411,161.86,161.85,48.58468397]
[1752321088393,2.45662411,161.86,161.85,48.58468397]
[1752321089283,2.45662411,161.86,161.82,28.74662411]
[1752321089284,3.15662411,161.86,161.82,26.0]
[1752321089594,2.45662411,161.84,161.83,48.56468397]
[1752321090795,3.15662411,161.85,161.83,48.56468397]
[1752321092673,3.15662411,161.84,161.83,31.78]
[1752321097400,2.45662411,161.84,161.83,31.78]
[1752321100607,2.45662411,161.86,161.83,32.07]
[1752321100800,2.45662411,161.86,161.84,16.78468397]
[1752321100998,2.45662411,161.86,161.85,31.76]
[1752321101501,3.15662411,161.86,161.85,31.76]
[1752321102090,0.7,161.88,161.85,31.76]
[1752321102297,2.45662411,161.88,161.85,32.05]
[1752321103504,3.15662411,161.88,161.85,31.76]
[1752321105016,0.03,161.89,161.88,42.78468397]
[1752321105310,0.03,161.89,161.88,74.52468397]
[1752321107020,0.03,161.89,161.88,74.81468397]
[1752321109020,0.03,161.89,161.88,77.27130808]
[1752321109319,0.03,161.89,161.88,74.52468397]
[1752321110396,3.15662411,161.89,161.88,31.74]
[1752321110600,3.15662411,161.89,161.88,48.52468397]
[1752321110808,4.53879682,161.89,161.88,48.52468397]
[1752321111697,4.53879682,161.89,161.88,31.74]
[1752321113304,0.7,161.89,161.88,31.74]
[1752321114305,0.03,161.89,161.88,48.52468397]
[1752321114501,0.03,161.89,161.88,48.81468397]
[1752321114705,0.03,161.89,161.88,52.65348079]
[1752321117418,0.03,161.89,161.88,48.81468397]
[1752321120527,0.03,161.89,161.87,26.0]
[1752321120726,0.03,161.89,161.88,31.72]
[1752321120727,4.53879682,161.89,161.88,31.72]
[1752321121225,4.53879682,161.89,161.82,31.53360018]
[1752321121226,6.5242,161.88,161.82,26.62]
[1752321121427,6.5242,161.88,161.83,48.50468397]
[1752321121428,3.83879682,161.84,161.83,48.50468397]
[1752321121631,4.50879682,161.85,161.83,48.50468397]
[1752321121830,3.83879682,161.84,161.83,48.50468397]
[1752321123413,4.50879682,161.85,161.83,48.50468397]
[1752321124623,3.83879682,161.87,161.83,48.79468397]
[1752321125535,4.53879682,161.89,161.87,16.78468397]
[1752321125732,0.03,161.89,161.88,48.48468397]
[1752321129531,4.53879682,161.89,161.88,48.48468397]
[1752321131151,4.53879682,161.89,161.88,31.7]
[1752321131329,4.53879682,161.89,161.86,26.0]
[1752321131524,3.83879682,161.87,161.86,16.78468397]
[1752321131862,4.50879682,161.87,161.86,48.48468397]
[1752321132156,3.83879682,161.87,161.86,48.48468397]
[1752321134252,4.50879682,161.88,161.86,48.48468397]
[1752321134552,3.83879682,161.88,161.86,48.48468397]
[1752321135641,4.51879682,161.88,161.86,48.48468397]
[1752321136361,3.83879682,161.88,161.86,48.48468397]
[1752321137553,4.51879682,161.88,161.86,48.48468397]
[1752321140658,3.83879682,161.88,161.86,48.48468397]
[1752321140965,4.51879682,161.87,161.86,48.48468397]
[1752321141843,4.51879682,161.88,161.86,48.48468397]
[1752321142058,3.86879682,161.89,161.86,48.48468397]
[1752321142248,4.54879682,161.89,161.86,48.48468397]
[1752321142761,0.68,161.88,161.86,48.48468397]
[1752321143341,4.51879682,161.88,161.86,48.48468397]
[1752321143561,3.83879682,161.88,161.86,48.48468397]
[1752321143773,4.54879682,161.89,161.86,48.48468397]
[1752321145559,0.68,161.88,161.86,48.48468397]
[1752321145757,0.68,161.87,161.86,48.48468397]
[1752321147652,4.51879682,161.88,161.86,48.48468397]
[1752321147957,3.83879682,161.87,161.86,48.48468397]
[1752321148638,4.51879682,161.87,161.86,48.48468397]
[1752321151068,4.51879682,161.87,161.86,31.7]
[1752321155079,0.68,161.87,161.86,31.7]
[1752321155261,4.51879682,161.87,161.86,31.7]
[1752321156864,3.83879682,161.87,161.86,31.7]
[1752321159269,4.51879682,161.87,161.86,31.7]
[1752321159567,0.03,161.89,161.87,16.78468397]
[1752321159766,0.03,161.89,161.88,48.44468397]
[1752321159971,3.86879682,161.89,161.88,48.44468397]
[1752321160344,4.54879682,161.89,161.88,48.44468397]
[1752321160758,4.54879682,161.89,161.88,31.66]
[1752321167677,3.86879682,161.89,161.88,31.66]
[1752321170885,3.86879682,161.89,161.88,48.44468397]
[1752321172377,0.03,161.89,161.88,48.44468397]
[1752321172684,3.86879682,161.89,161.88,48.44468397]
[1752321175971,4.58879682,161.89,161.88,48.44468397]
[1752321176784,3.20696878,161.89,161.88,48.44468397]
[1752321177668,3.20696878,161.89,161.88,31.66]
[1752321182792,2.48696878,161.89,161.88,31.66]
[1752321183192,0.03,161.89,161.88,48.73468397]
[1752321189497,0.1,161.91,161.88,48.73468397]
[1752321190289,0.1,161.91,161.89,0.29]
[1752321190495,0.1,161.91,161.9,48.38468397]
[1752321191773,0.82,161.91,161.9,48.38468397]
[1752321192070,4.65737355,161.91,161.9,48.38468397]
[1752321192599,4.65737355,161.91,161.9,31.6]
[1752321199903,0.82,161.91,161.9,31.6]
[1752321200202,4.65737355,161.91,161.9,31.6]
[1752321203804,0.82,161.91,161.9,31.6]
[1752321203994,4.65737355,161.91,161.9,31.6]
[1752321204901,0.1,161.91,161.9,31.6]
[1752321205105,3.93737355,161.91,161.9,31.6]
[1752321205497,0.1,161.91,161.9,31.6]
[1752321206587,3.93737355,161.91,161.9,31.6]
[1752321206788,2.55616982,161.91,161.9,31.6]
[1752321207114,3.25616982,161.91,161.9,31.6]
[1752321208926,0.1,161.91,161.9,48.38468397]
[1752321210712,3.25616982,161.91,161.9,48.38468397]
[1752321211511,1.6633,161.9,161.84,0.29]
[1752321211718,2.45616982,161.87,161.86,16.78468397]
[1752321215798,2.45616982,161.87,161.82,55.07616982]
[1752321215799,3.15616982,161.87,161.83,16.78468397]
[1752321216018,0.7,161.86,161.82,26.62]
[1752321216221,2.45616982,161.83,161.82,43.40468397]
[1752321216519,3.15616982,161.83,161.82,58.18]
[1752321216714,3.15616982,161.83,161.82,74.96468397]
[1752321217212,0.7,161.83,161.82,74.96468397]
[1752321217391,3.15616982,161.83,161.82,74.96468397]
[1752321218120,0.7,161.83,161.82,58.18]
[1752321218296,2.45616982,161.83,161.82,58.18]
[1752321218714,2.45616982,161.83,161.82,74.96468397]
[1752321219022,3.84156913,161.83,161.82,74.96468397]
[1752321221212,3.84156913,161.83,161.82,48.34468397]
[1752321222611,4.54156913,161.84,161.82,48.34468397]
[1752321223420,3.84156913,161.84,161.82,48.63468397]
[1752321223720,3.84156913,161.86,161.83,17.07468397]
[1752321224021,3.84156913,161.86,161.84,31.54]
[1752321224503,4.54156913,161.87,161.84,31.54]
[1752321224703,4.54156913,161.87,161.85,16.78468397]
[1752321224996,4.54156913,161.87,161.86,31.54]
[1752321225513,4.54156913,161.87,161.81,0.06]
[1752321225818,3.84156913,161.82,161.81,0.06]
[1752321226011,3.84156913,161.82,161.81,48.38468397]
[1752321227410,3.84156913,161.83,161.81,48.38468397]
[1752321227615,4.53156913,161.83,161.81,48.38468397]
[1752321230124,3.84156913,161.82,161.81,31.6]
[1752321230311,4.53156913,161.82,161.81,31.6]
[1752321231310,3.84156913,161.82,161.81,31.6]
[1752321231511,4.53156913,161.83,161.81,31.6]
[1752321232436,3.84156913,161.84,161.81,31.6]
[1752321232744,3.84156913,161.84,161.81,31.89]
[1752321233036,4.53156913,161.84,161.81,31.6]
[1752321234041,3.84156913,161.85,161.82,17.07468397]
[1752321234203,3.84156913,161.86,161.83,31.54]
[1752321234404,4.53156913,161.86,161.83,31.54]
[1752321234630,3.84156913,161.86,161.84,16.78468397]
[1752321234844,4.53156913,161.87,161.85,31.54]
[1752321235016,4.53156913,161.87,161.86,31.54]
[1752321242039,7.7183,161.86,161.81,0.06]
[1752321242349,3.84156913,161.82,161.81,0.06]
[1752321242532,3.84156913,161.82,161.81,31.58]
[1752321242737,4.53156913,161.82,161.81,31.58]
[1752321247546,0.69,161.82,161.81,31.58]
[1752321247758,4.53156913,161.82,161.81,31.58]
[1752321248450,0.69,161.82,161.81,31.58]
[1752321248655,4.53156913,161.82,161.81,31.58]
[1752321251959,0.69,161.82,161.81,31.58]
[1752321252154,4.53156913,161.82,161.81,31.58]
[1752321256664,4.53156913,161.82,161.81,0.06]
[1752321256871,11.03686913,161.82,161.81,31.58]
[1752321278360,11.03686913,161.82,161.75,52.97]
[1752321278560,3.84156913,161.76,161.75,52.97]
[1752321278761,3.84156913,161.76,161.75,26.35]
[1752321279077,3.84156913,161.76,161.75,0.06]
[1752321279393,4.54156913,161.76,161.75,0.06]
[1752321279562,4.54156913,161.76,161.75,31.56]
[1752321288902,3.16168696,161.76,161.75,31.56]
[1752321291599,13.0084348,161.76,161.75,31.56]
[1752321291978,3.16168696,161.76,161.75,31.56]
[1752321294389,13.0084348,161.76,161.75,31.56]
[1752321301997,2.46168696,161.76,161.75,31.56]
[1752321302308,2.46168696,161.76,161.75,31.85]
[1752321302484,2.46168696,161.76,161.75,31.56]
[1752321307402,3.14168696,161.76,161.75,31.56]
[1752321312732,0.68,161.77,161.75,31.56]
[1752321313027,2.46168696,161.76,161.75,31.85]
[1752321314631,2.46168696,161.76,161.75,31.83]
[1752321317628,2.46168696,161.76,161.75,31.54]
[1752321317838,3.12168696,161.76,161.75,31.54]
[1752321318417,2.46168696,161.76,161.75,31.54]
[1752321320542,3.12168696,161.76,161.75,31.52]
[1752321320720,2.46168696,161.76,161.75,31.52]
[1752321321335,2.46168696,161.76,161.75,31.81]
[1752321321635,2.46168696,161.76,161.75,31.52]
[1752321329450,3.12168696,161.76,161.75,31.52]
[1752321331025,12.9684348,161.76,161.75,31.52]
[1752321336347,3.12168696,161.76,161.75,31.52]
[1752321336575,12.9684348,161.76,161.75,31.52]
[1752321345257,26.0,161.75,161.7,0.2]
[1752321345471,2.46168696,161.71,161.7,0.2]
[1752321345964,3.16168696,161.71,161.7,0.2]
[1752321346363,3.16168696,161.71,161.7,31.64]
[1752321354974,145.5,161.74,161.7,31.93]
[1752321355170,2.46168696,161.71,161.7,31.64]
[1752321356473,2.46168696,161.71,161.7,31.93]
[1752321357473,2.46168696,161.71,161.7,31.64]
[1752321357667,3.16168696,161.71,161.7,31.64]
[1752321358356,3.16168696,161.71,161.66,0.2]
[1752321358357,13.0084348,161.71,161.66,0.2]
[1752321358559,2.46168696,161.67,161.66,0.2]
[1752321359666,2.46168696,161.67,161.66,31.64]
[1752321360169,3.16168696,161.67,161.66,31.64]
[1752321360976,4.55186061,161.67,161.66,31.64]
[1752321362177,26.0,161.63,161.58,0.2]
[1752321362351,3.85186061,161.59,161.58,31.66]
[1752321362763,6.646,161.65,161.58,31.95]
[1752321362764,7.346,161.65,161.58,31.95]
[1752321362963,3.85186061,161.61,161.58,31.66]
[1752321363169,0.7,161.64,161.59,0.29]
[1752321363377,0.7,161.63,161.58,31.66]
[1752321364273,3.85186061,161.59,161.58,31.66]
[1752321365262,40.52322122,161.59,161.49,15.0]
[1752321365453,3.85186061,161.5,161.49,15.0]
[1752321365665,3.85186061,161.5,161.49,46.46]
[1752321366169,26.7,161.55,161.49,46.75]
[1752321366371,3.85186061,161.5,161.49,46.75]
[1752321366593,0.7,161.54,161.49,46.75]
[1752321366775,3.85186061,161.5,161.49,15.0]
[1752321366988,36.67136061,161.5,161.39,0.29]
[1752321367150,3.85186061,161.4,161.39,0.29]
[1752321367355,0.7,161.49,161.39,31.79]
[1752321367556,26.0,161.53,161.42,29.85186061]
[1752321367779,3.85186061,161.48,161.43,4.14186061]
[1752321367955,3.85186061,161.52,161.37,10.0]
[1752321367956,0.7,161.59,161.51,16.78468397]
[1752321368150,3.85186061,161.55,161.52,31.87]
[1752321368371,3.85186061,161.55,161.53,0.29]
[1752321368961,3.85186061,161.55,161.54,0.29]
[1752321369171,3.85186061,161.57,161.54,0.29]
[1752321369487,3.85186061,161.57,161.53,16.78468397]
[1752321369488,3.85186061,161.57,161.55,0.29]
[1752321369675,3.85186061,161.57,161.56,31.68]
[1752321370886,26.0,161.52,161.43,0.29]
[1752321371192,26.0,161.48,161.38,0.29]
[1752321371490,3.85186061,161.45,161.42,31.74]
[1752321371782,26.0,161.5,161.43,17.07468397]
[1752321371783,3.85186061,161.46,161.43,17.07468397]
[1752321371997,3.85186061,161.46,161.44,0.29]
[1752321372157,3.85186061,161.45,161.44,0.29]
[1752321372663,3.85186061,161.49,161.45,0.29]
[1752321373164,0.7,161.54,161.45,0.29]
[1752321373365,26.0,161.53,161.46,16.78468397]
[1752321373569,3.85186061,161.49,161.47,31.78]
[1752321373877,3.85186061,161.53,161.48,20.92654458]
[1752321374071,6.8195,161.56,161.49,0.29]
[1752321374264,3.85186061,161.53,161.49,0.29]
[1752321374460,6.8195,161.56,161.49,0.29]
[1752321374461,3.85186061,161.52,161.49,0.29]
[1752321374669,3.85186061,161.52,161.48,16.78468397]
[1752321374876,3.85186061,161.52,161.5,0.29]
[1752321375172,3.85186061,161.52,161.51,31.78]
[1752321375688,8.36372122,161.52,161.44,0.29]
[1752321375864,3.85186061,161.47,161.45,31.78]
[1752321376065,3.85186061,161.47,161.45,32.07]
[1752321376269,3.85186061,161.48,161.45,32.07]
[1752321376662,0.66,161.52,161.46,0.29]
[1752321376874,3.85186061,161.49,161.46,17.07468397]
[1752321377181,3.85186061,161.5,161.47,0.29]
[1752321377557,3.85186061,161.49,161.47,0.29]
[1752321377775,3.85186061,161.49,161.46,16.78468397]
[1752321378178,3.85186061,161.49,161.46,17.07468397]